bitfinex/quotes_SOLUSD_20240813
["timestamp","ask_amount","ask_price","bid_price","bid_amount"]
[1723543909287,20.0,144.62,144.6,0.12549]
[1723543910109,20.0,144.62,144.59,7.04129]
[1723543910314,20.0,144.62,144.6,45.12549]
[1723543910500,26.9148,144.62,144.6,45.12549]
[1723543910692,26.9148,144.62,144.61,0.12549]
[1723543911011,26.9148,144.62,144.61,45.12549]
[1723543911202,26.9148,144.62,144.61,0.25098]
[1723543911409,26.9148,144.62,144.61,45.25098]
[1723543911916,26.9148,144.62,144.61,45.12549]
[1723543912083,26.9148,144.62,144.61,0.12549]
[1723543912289,6.9161,144.59,144.55,13.0018]
[1723543913509,6.9158,144.6,144.57,0.12549]
[1723543913713,6.9153,144.61,144.57,52.41896]
[1723543914122,26.9148,144.62,144.59,0.12549]
[1723543914615,26.9148,144.62,144.59,45.25098]
[1723543914784,26.9148,144.62,144.6,0.12549]
[1723543916091,6.9153,144.61,144.59,45.25098]
[1723543916323,6.9153,144.61,144.6,45.0]
[1723543916622,6.9153,144.61,144.6,0.25098]
[1723543917033,6.9159,144.6,144.59,0.12549]
[1723543917322,52.17,144.62,144.53,17.2964]
[1723543917490,6.9168,144.58,144.54,6.9183]
[1723543917696,6.917,144.57,144.53,24.2151]
[1723543918520,6.9167,144.58,144.54,6.9184]
[1723543918715,6.9161,144.59,144.55,13.002]
[1723543918918,6.9161,144.59,144.57,0.12549]
[1723543919595,6.9165,144.58,144.57,0.12549]
[1723543919797,32.17,144.6,144.53,17.2964]
[1723543919998,6.9181,144.55,144.52,21.479]
[1723543920213,32.17,144.58,144.52,13.3105]
[1723543920515,26.9171,144.57,144.53,6.9186]
[1723543920696,68.5428,144.62,144.54,17.2958]
[1723543921091,6.9159,144.6,144.56,6.9174]
[1723543921291,20.0,144.59,144.56,6.9174]
[1723543921720,20.0,144.59,144.57,45.50196]
[1723543922217,20.0,144.59,144.57,45.37647]
[1723543922515,6.9157,144.6,144.57,45.37647]
[1723543922718,26.9162,144.59,144.57,45.37647]
[1723543923015,20.0,144.59,144.57,45.37647]
[1723543923608,26.9161,144.59,144.57,45.37647]
[1723543924111,20.0,144.59,144.57,52.29347]
[1723543924311,20.0,144.6,144.57,52.29347]
[1723543924516,6.9162,144.59,144.57,45.37647]
[1723543924899,6.9162,144.59,144.57,0.37647]
[1723543925100,26.9157,144.6,144.57,0.37647]
[1723543925408,20.0,144.6,144.57,7.29337]
[1723543925615,6.9152,144.61,144.59,0.12549]
[1723543925790,6.9152,144.61,144.59,0.25098]
[1723543926188,6.9156,144.6,144.59,0.25098]
[1723543926599,9.65393888,144.61,144.59,0.25098]
[1723543926801,2.73883888,144.61,144.59,0.25098]
[1723543927001,20.0,144.61,144.59,0.25098]
[1723543927493,20.0,144.61,144.59,7.16688]
[1723543927708,20.0,144.62,144.61,0.12549]
[1723543927900,26.9146,144.62,144.61,0.25098]
[1723543932427,2.72229131,144.64,144.61,0.37647]
[1723543932606,20.0,144.64,144.61,0.25098]
[1723543932807,6.9139,144.64,144.61,0.25098]
[1723543933221,6.9135,144.65,144.61,7.16608]
[1723543933422,6.9135,144.65,144.62,45.0]
[1723543933727,6.9139,144.64,144.63,0.12549]
[1723543934403,6.9139,144.64,144.61,0.12549]
[1723543934599,6.9151,144.61,144.6,0.12549]
[1723543934804,50.27402878,144.64,144.59,45.37647]
[1723543935026,6.9153,144.61,144.59,45.37647]
[1723543935521,6.9143,144.63,144.59,52.29237]
[1723543935702,6.9143,144.63,144.6,6.9156]
[1723543935901,6.914,144.64,144.61,45.50196]
[1723543936102,26.9141,144.63,144.61,45.50196]
[1723543936414,26.9141,144.63,144.62,45.12549]
[1723543936610,26.9141,144.63,144.62,0.12549]
[1723543936908,26.9141,144.63,144.61,0.25098]
[1723543937108,20.0,144.63,144.61,0.25098]
[1723543937320,6.9138,144.64,144.61,1.20375867]
[1723543938314,6.9143,144.63,144.61,0.25098]
[1723543940110,6.9137,144.64,144.61,0.25098]
[1723543941021,6.9142,144.63,144.61,0.25098]
[1723543944235,35.70876845,144.66,144.58,23.481]
[1723543944236,6.9152,144.61,144.58,23.481]
[1723543945345,6.9152,144.61,144.59,45.0]
[1723543945530,6.9152,144.61,144.6,0.25098]
[1723543946752,6.9149,144.62,144.6,0.25098]
[1723543950136,6.9151,144.61,144.6,0.25098]
[1723543950637,6.9148,144.62,144.6,0.25098]
[1723543951327,9.70773906,144.64,144.6,17.53968]
[1723543951523,20.0,144.63,144.61,45.37647]
[1723543951832,2.79383906,144.64,144.62,0.25098]
[1723543952039,20.0,144.64,144.62,0.25098]
[1723543952740,26.9138,144.64,144.62,0.25098]
[1723543953037,6.9141,144.63,144.62,0.25098]
[1723543955624,39.7938,144.64,144.62,0.25098]
[1723543956034,26.9138,144.64,144.62,0.25098]
[1723543956238,6.9141,144.63,144.62,0.25098]
[1723543957041,6.9141,144.63,144.62,0.12549]
[1723543957340,6.9141,144.63,144.61,0.12549]
[1723543957341,6.9146,144.62,144.61,0.12549]
[1723543957921,20.0,144.63,144.62,0.12549]
[1723543957922,26.9142,144.63,144.62,0.12549]
[1723543958224,19.7939,144.64,144.62,0.12549]
[1723543960137,6.9141,144.63,144.62,0.12549]
[1723543961851,6.9141,144.63,144.62,0.25098]
[1723543962427,6.9138,144.64,144.62,0.50196]
[1723543962762,6.9138,144.64,144.62,0.37647]
[1723543965064,19.7937,144.65,144.62,0.37647]
[1723543965275,26.9137,144.64,144.62,0.37647]
[1723543966543,6.9141,144.63,144.62,0.37647]
[1723543966748,6.9141,144.63,144.62,0.50196]
[1723543968762,6.9141,144.63,144.62,0.25098]
[1723543972363,22.72357592,144.64,144.62,0.37647]
[1723543972534,6.9132,144.65,144.62,0.37647]
[1723543972736,6.9132,144.65,144.62,7.29097]
[1723543972964,6.9132,144.65,144.64,0.12549]
[1723543973135,6.9132,144.65,144.64,0.25098]
[1723543973136,26.9132,144.65,144.64,0.25098]
[1723543973457,26.9132,144.65,144.64,0.12549]
[1723543973835,26.9132,144.65,144.63,0.25098]
[1723543974756,6.9137,144.64,144.63,0.25098]
[1723543977055,6.9121,144.68,144.63,24.18246]
[1723543977234,6.9115,144.69,144.65,24.32129]
[1723543977442,6.9115,144.69,144.67,0.12549]
[1723543977641,6.9118,144.68,144.67,0.12549]
[1723543979273,37.2801,144.68,144.64,0.12549]
[1723543979460,6.9132,144.65,144.64,0.25098]
[1723543980264,6.9125,144.67,144.64,0.37647]
[1723543980447,6.9125,144.67,144.65,0.12549]
[1723543980644,6.9125,144.67,144.65,0.37647]
[1723543980844,6.9125,144.67,144.66,0.12549]
[1723543981051,20.0,144.67,144.66,0.12549]
[1723543981358,6.9122,144.67,144.66,0.12549]
[1723543981551,6.9127,144.66,144.65,0.25098]
[1723543983062,6.9127,144.66,144.65,0.12549]
[1723543983263,20.0,144.66,144.6,6.0775]
[1723543983443,12.88,144.63,144.6,6.0775]
[1723543983761,6.9139,144.64,144.6,12.9926]
[1723543984057,20.0,144.66,144.6,6.0775]
[1723543984058,6.9142,144.63,144.6,6.0775]
[1723543984563,6.9146,144.62,144.59,17.29]
[1723543984761,49.4744,144.64,144.57,15.8771]
[1723543985071,6.9159,144.6,144.57,15.8771]
[1723543985390,6.9159,144.6,144.56,30.4635]
[1723543985744,6.9152,144.61,144.57,6.9169]
[1723543985944,6.9152,144.61,144.56,23.5461]
[1723543985945,6.9143,144.63,144.59,6.916]
[1723543986153,20.0,144.62,144.6,52.41746]
[1723543986359,20.0,144.63,144.6,52.29197]
[1723543986964,26.9142,144.63,144.6,45.37647]
[1723543987563,6.9139,144.64,144.6,52.29207]
[1723543987759,6.9139,144.64,144.61,0.25098]
[1723543988073,6.9135,144.65,144.62,0.25098]
[1723543988265,26.9137,144.64,144.62,45.37647]
[1723543988473,26.9137,144.64,144.62,45.25098]
[1723543988646,26.9137,144.64,144.62,0.25098]
[1723543991649,26.9137,144.64,144.63,0.25098]
[1723543991843,26.9137,144.64,144.63,0.50196]
[1723543992263,26.9137,144.64,144.63,0.37647]
[1723543992468,26.9137,144.64,144.63,0.50196]
[1723543995458,17.28,144.68,144.63,0.50196]
[1723543995784,17.28,144.68,144.64,0.37647]
[1723543995785,6.9132,144.65,144.64,0.37647]
[1723543995969,6.9132,144.65,144.64,0.50196]
[1723543996472,6.9132,144.65,144.64,0.25098]
[1723543997857,6.9132,144.65,144.64,0.37647]
[1723543998075,20.0,144.67,144.64,0.50196]
[1723543998076,6.9129,144.66,144.64,0.50196]
[1723543998479,26.9124,144.67,144.64,0.50196]
[1723543998790,26.9124,144.67,144.66,0.12549]
[1723543999082,26.9124,144.67,144.66,0.25098]
[1723544000062,6.9137,144.64,144.61,6.0589]
[1723544000769,6.9133,144.65,144.61,12.9739]
[1723544000960,6.9129,144.66,144.62,6.9146]
[1723544001371,6.9129,144.66,144.63,0.12549]
[1723544001589,6.9133,144.65,144.63,45.50196]
[1723544001755,6.9133,144.65,144.64,45.12549]
[1723544001956,6.913,144.66,144.64,0.37647]
[1723544002182,6.913,144.66,144.65,0.25098]
[1723544002688,6.913,144.66,144.65,0.12549]
[1723544002875,6.913,144.66,144.64,0.25098]
[1723544003062,6.913,144.66,144.65,0.12549]
[1723544003258,26.9124,144.67,144.65,0.12549]
[1723544003466,26.9124,144.67,144.66,0.12549]
[1723544003971,26.9124,144.67,144.66,0.25098]
[1723544004155,26.9124,144.67,144.66,0.12549]
[1723544005397,20.0,144.67,144.66,0.12549]
[1723544005753,26.9122,144.67,144.66,0.12549]
[1723544006662,6.9127,144.66,144.65,0.25098]
[1723544008266,6.9127,144.66,144.65,0.12549]
[1723544008461,6.9161,144.59,144.57,6.4372]
[1723544008674,32.19,144.62,144.57,6.4372]
[1723544008861,32.19,144.62,144.57,13.3538]
[1723544008862,20.0,144.61,144.57,13.3538]
[1723544009062,20.0,144.61,144.58,6.9165]
[1723544009287,6.9165,144.58,144.55,15.1779]
[1723544009577,32.19,144.6,144.53,23.6306]
[1723544009776,6.9166,144.58,144.53,30.5494]
[1723544010281,6.9171,144.57,144.53,30.5494]
[1723544010457,6.9175,144.56,144.53,6.3338]
[1723544010862,6.9171,144.57,144.53,6.3338]
[1723544011156,6.9171,144.57,144.53,13.2526]
[1723544011563,6.9166,144.58,144.54,6.9184]
[1723544011784,6.9166,144.58,144.55,45.25098]
[1723544011978,6.9166,144.58,144.56,0.12549]
[1723544012169,26.9164,144.59,144.56,0.12549]
[1723544012487,26.9164,144.59,144.57,0.12549]
[1723544013281,6.9165,144.58,144.57,0.12549]
[1723544013482,6.9165,144.58,144.56,0.25098]
[1723544013678,6.917,144.57,144.53,6.3338]
[1723544013983,32.19,144.55,144.49,23.6188]
[1723544014183,32.19,144.55,144.49,6.3173]
[1723544014684,6.9194,144.52,144.49,6.3173]
[1723544015170,6.9195,144.52,144.49,6.3173]
[1723544015367,6.92,144.51,144.47,22.7878]
[1723544015603,33.00962878,144.53,144.46,23.4169]
[1723544015794,6.9209,144.49,144.46,6.1117]
[1723544016291,6.9209,144.49,144.44,6.9232]
[1723544016589,6.9214,144.48,144.43,39.9817]
[1723544016970,6.9214,144.48,144.44,6.9232]
[1723544017287,6.9209,144.49,144.44,6.9232]
[1723544017789,6.9209,144.49,144.45,45.25098]
[1723544017976,6.9209,144.49,144.46,0.12549]
[1723544018392,6.9209,144.49,144.45,52.04819]
[1723544018597,6.9209,144.49,144.46,0.12549]
[1723544019072,6.9209,144.49,144.45,45.12549]
[1723544019490,6.9204,144.5,144.45,52.04819]
[1723544019695,6.9204,144.5,144.47,0.12549]
[1723544019696,20.0,144.5,144.47,0.12549]
[1723544019870,26.9204,144.5,144.47,45.12549]
[1723544020070,26.9204,144.5,144.48,0.12549]
[1723544020491,26.9204,144.5,144.47,45.12549]
[1723544020688,6.9218,144.47,144.46,45.0]
[1723544020883,49.4927,144.49,144.42,6.1117]
[1723544021085,6.9223,144.46,144.42,6.1117]
[1723544022089,6.9223,144.46,144.43,0.12549]
[1723544022287,6.9223,144.46,144.43,45.37647]
[1723544022996,6.9223,144.46,144.41,6.9245]
[1723544023176,6.9229,144.45,144.41,6.9245]
[1723544023877,6.9223,144.46,144.42,6.9241]
[1723544024277,6.9223,144.46,144.44,0.12549]
[1723544024492,6.9223,144.46,144.44,0.25098]
[1723544027977,32.19,144.49,144.44,0.25098]
[1723544028184,6.9224,144.46,144.44,0.25098]
[1723544028384,20.0,144.48,144.44,0.25098]
[1723544028582,6.9228,144.45,144.44,0.25098]
[1723544028783,6.9223,144.46,144.44,0.25098]
[1723544030775,20.0,144.48,144.44,0.25098]
[1723544031180,6.9209,144.49,144.46,0.12549]
[1723544031380,20.0,144.48,144.46,45.25098]
[1723544032291,20.0,144.48,144.47,0.12549]
[1723544032474,6.9209,144.49,144.47,0.37647]
[1723544032681,6.9209,144.49,144.48,0.12549]
[1723544032919,26.9209,144.49,144.48,0.25098]
[1723544036690,6.9198,144.52,144.48,7.29777]
[1723544037011,6.9199,144.51,144.5,0.12549]
[1723544037206,6.9199,144.51,144.5,0.25098]
[1723544038095,26.9199,144.51,144.5,0.25098]
[1723544039316,26.9199,144.51,144.5,0.12549]
[1723544039506,26.9199,144.51,144.36,6.932]
[1723544039507,6.9222,144.47,144.43,6.9234]
[1723544039830,6.9223,144.46,144.42,23.1278]
[1723544040029,6.9226,144.46,144.42,23.1278]
[1723544040204,32.19,144.49,144.41,24.2357]
[1723544040399,20.0,144.48,144.41,24.2357]
[1723544040594,6.9231,144.45,144.41,24.2357]
[1723544040825,6.9223,144.46,144.42,6.9241]
[1723544041195,6.9231,144.45,144.41,17.311]
[1723544041921,6.9231,144.45,144.41,24.2354]
[1723544042338,6.9231,144.45,144.42,45.12549]
[1723544042490,32.19,144.47,144.4,6.4846]
[1723544042691,6.9236,144.44,144.4,13.4097]
[1723544042923,6.9234,144.44,144.4,13.4097]
[1723544043613,32.19,144.45,144.4,13.4097]
[1723544043614,6.9238,144.43,144.4,6.4846]
[1723544043897,6.9234,144.44,144.4,13.4097]
[1723544044396,6.9238,144.43,144.41,45.37647]
[1723544044599,6.9234,144.44,144.41,45.25098]
[1723544044799,6.923,144.45,144.43,0.12549]
[1723544044998,6.9232,144.44,144.43,0.25098]
[1723544045915,6.9237,144.43,144.42,0.12549]
[1723544046133,6.9237,144.43,144.39,6.9256]
[1723544046417,6.9243,144.42,144.38,6.926]
[1723544046623,6.9239,144.43,144.39,6.9256]
[1723544046827,6.9239,144.43,144.37,17.3156]
[1723544046828,6.9243,144.42,144.38,6.926]
[1723544047009,6.9239,144.43,144.39,6.9256]
[1723544047209,6.9239,144.43,144.4,0.25098]
[1723544047406,6.9239,144.43,144.41,0.12549]
[1723544047798,6.9242,144.42,144.41,0.12549]
[1723544048317,6.9234,144.44,144.41,0.25098]
[1723544048507,20.0,144.43,144.42,0.12549]
[1723544048708,26.9237,144.43,144.42,0.12549]
[1723544049218,26.9237,144.43,144.41,0.12549]
[1723544049219,6.9255,144.4,144.36,30.8507]
[1723544049443,20.81962878,144.43,144.36,17.3174]
[1723544049444,6.9257,144.39,144.36,17.3174]
[1723544050438,6.9253,144.4,144.37,45.0]
[1723544050724,6.927,144.37,144.33,24.249]
[1723544051611,47.7702,144.39,144.33,17.3205]
[1723544051933,20.0,144.4,144.35,6.4316]
[1723544052117,48.6867,144.43,144.37,17.3163]
[1723544052118,16.4967,144.43,144.37,17.3163]
[1723544052437,6.9248,144.41,144.37,24.2427]
[1723544052737,6.9248,144.41,144.38,0.25098]
[1723544053027,6.9248,144.41,144.39,0.25098]
[1723544054633,6.9252,144.4,144.39,0.25098]
[1723544055130,20.0,144.42,144.41,0.12549]
[1723544055332,6.9238,144.43,144.41,45.12549]
[1723544055533,6.9242,144.42,144.41,45.12549]
[1723544055721,6.9252,144.4,144.39,0.12549]
[1723544056212,26.9243,144.42,144.39,0.12549]
[1723544056537,26.9243,144.42,144.39,45.12549]
[1723544056899,26.9243,144.42,144.4,0.12549]
[1723544057323,26.9243,144.42,144.4,0.25098]
[1723544060613,20.0,144.42,144.4,0.25098]
[1723544061121,6.9247,144.41,144.4,0.25098]
[1723544061719,6.9252,144.4,144.39,45.0]
[1723544061925,6.9258,144.39,144.37,0.12549]
[1723544062223,6.9255,144.4,144.36,17.3174]
[1723544062618,6.9255,144.4,144.36,24.2443]
[1723544063434,6.9255,144.4,144.38,0.12549]
[1723544064244,6.9256,144.39,144.38,0.12549]
[1723544064828,6.9261,144.38,144.37,45.12549]
[1723544065150,6.9267,144.37,144.33,24.2485]
[1723544066158,32.19,144.4,144.33,17.3203]
[1723544066338,6.9261,144.38,144.34,7.05329]
[1723544066520,6.9261,144.38,144.35,45.0]
[1723544066721,32.19,144.4,144.36,0.25098]
[1723544066934,20.0,144.39,144.36,0.25098]
[1723544067220,6.9262,144.38,144.36,0.25098]
[1723544067439,26.9258,144.39,144.36,0.25098]
[1723544068347,6.9263,144.38,144.36,0.25098]
[1723544068855,26.9257,144.39,144.36,0.25098]
[1723544069926,6.9262,144.38,144.36,0.25098]
[1723544071350,6.9266,144.37,144.36,0.25098]
[1723544072554,33.00962878,144.38,144.32,17.3215]
[1723544072721,20.0,144.37,144.32,17.3215]
[1723544073527,6.9273,144.36,144.32,24.2505]
[1723544073850,6.9273,144.36,144.33,0.25098]
[1723544074054,6.9273,144.36,144.33,0.37647]
[1723544074351,6.9273,144.36,144.33,7.30497]
[1723544074558,20.0,144.37,144.35,0.12549]
[1723544074745,20.0,144.38,144.35,7.17848]
[1723544075055,26.9261,144.38,144.37,0.12549]
[1723544075242,20.0,144.38,144.37,0.12549]
[1723544075443,26.9261,144.38,144.37,0.12549]
[1723544075640,6.9266,144.37,144.35,0.12549]
[1723544075842,20.0,144.38,144.31,25.0720388]
[1723544076164,20.0,144.38,144.31,18.1427388]
[1723544076329,6.9268,144.37,144.33,6.9285]
[1723544076733,20.0,144.38,144.33,17.3208]
[1723544077050,20.0,144.4,144.33,17.3208]
[1723544077223,20.0,144.4,144.34,45.25098]
[1723544077852,6.9269,144.37,144.34,45.25098]
[1723544078438,20.0,144.4,144.36,0.12549]
[1723544078640,6.9255,144.4,144.36,45.50196]
[1723544078846,16.5498,144.45,144.37,17.3165]
[1723544079035,16.5498,144.45,144.38,45.50196]
[1723544079457,6.9244,144.42,144.38,52.42776]
[1723544079629,6.924,144.43,144.4,0.12549]
[1723544079831,16.5498,144.45,144.4,45.25098]
[1723544080254,26.924,144.43,144.4,45.25098]
[1723544080762,6.9242,144.42,144.4,45.25098]
[1723544081263,6.9247,144.41,144.38,0.12549]
[1723544081636,6.9252,144.4,144.38,0.12549]
[1723544082741,12.81875559,144.44,144.38,0.12549]
[1723544082942,38.6478,144.49,144.38,32.31549]
[1723544083140,20.0,144.48,144.4,0.12549]
[1723544083543,6.9227,144.46,144.42,7.04959]
[1723544083737,38.6478,144.49,144.44,0.12549]
[1723544083738,20.0,144.45,144.44,0.12549]
[1723544084653,26.9228,144.45,144.44,0.12549]
[1723544085039,20.0,144.45,144.44,0.12549]
[1723544085339,26.9228,144.45,144.44,0.12549]
[1723544086337,20.0,144.45,144.44,0.12549]
[1723544086769,6.9221,144.47,144.44,0.25098]
[1723544086973,6.9221,144.47,144.45,0.12549]
[1723544088370,6.9219,144.47,144.45,0.12549]
[1723544088571,32.19,144.47,144.37,6.2812]
[1723544088863,6.9249,144.41,144.37,13.2078]
[1723544090146,6.9241,144.43,144.39,6.9256]
[1723544090351,26.9243,144.42,144.4,45.12549]
[1723544090558,6.9247,144.41,144.4,0.12549]
[1723544091766,6.9247,144.41,144.4,0.25098]
[1723544093470,20.0,144.42,144.4,0.25098]
[1723544093670,6.9241,144.43,144.4,0.25098]
[1723544093874,26.9242,144.42,144.4,0.25098]
[1723544094172,50.31782878,144.44,144.4,0.25098]
[1723544094365,6.9247,144.41,144.4,0.25098]
[1723544095074,6.9244,144.42,144.4,0.25098]
[1723544095271,6.9239,144.43,144.4,0.25098]
[1723544095462,20.0,144.42,144.4,7.17608]
[1723544095781,26.924,144.43,144.42,0.12549]
[1723544095967,20.0,144.43,144.42,0.25098]
[1723544096975,20.0,144.43,144.42,0.37647]
[1723544097180,44.91781896,144.48,144.42,0.37647]
[1723544097356,6.9231,144.45,144.43,0.25098]
[1723544097557,6.9231,144.45,144.44,0.12549]
[1723544097763,6.9231,144.45,144.44,0.25098]
[1723544097958,62.22121896,144.48,144.44,0.25098]
[1723544098258,49.4934,144.48,144.44,0.25098]
[1723544098457,6.9228,144.45,144.44,0.25098]
[1723544098673,26.9228,144.45,144.44,0.12549]
[1723544099687,26.9228,144.45,144.43,0.25098]
[1723544099857,26.9228,144.45,144.43,45.25098]
[1723544100358,26.9228,144.45,144.44,45.12549]
[1723544100565,26.9228,144.45,144.44,0.25098]
[1723544100977,26.9228,144.45,144.44,0.12549]
[1723544101275,28.64916249,144.54,144.47,0.12549]
[1723544101475,13.06186249,144.54,144.49,0.12549]
[1723544101677,6.9185,144.54,144.51,0.12549]
[1723544101978,6.9185,144.54,144.51,0.37647]
[1723544102780,20.0,144.53,144.52,0.12549]
[1723544102989,20.0,144.53,144.52,0.25098]
[1723544103169,6.9194,144.52,144.51,0.12549]
[1723544103365,6.9194,144.52,144.46,6.922]
[1723544103366,18.11862878,144.52,144.44,21.5928]
[1723544103570,17.299,144.52,144.45,0.12549]
[1723544103877,6.9216,144.48,144.45,0.12549]
[1723544104578,6.9224,144.46,144.44,6.3925]
[1723544104969,6.922,144.47,144.44,6.3925]
[1723544105279,6.9224,144.46,144.42,24.2342]
[1723544105468,20.0,144.45,144.4,6.357]
[1723544105669,6.9237,144.43,144.4,6.357]
[1723544105882,6.9234,144.44,144.4,6.357]
[1723544106191,6.9239,144.43,144.4,6.357]
[1723544106359,6.9247,144.41,144.37,6.9263]
[1723544106992,6.9243,144.42,144.37,6.9263]
[1723544107492,20.0,144.45,144.38,17.3145]
[1723544107694,20.0,144.45,144.37,74.9809]
[1723544107868,55.7534,144.5,144.43,0.12549]
[1723544107869,26.9223,144.46,144.43,0.12549]
[1723544108192,26.9223,144.46,144.38,0.25098]
[1723544108193,40.35,144.44,144.38,0.25098]
[1723544108490,6.9248,144.41,144.38,0.25098]
[1723544108688,6.9242,144.42,144.38,7.17698]
[1723544109498,6.9242,144.42,144.39,45.0]
[1723544109797,6.9242,144.42,144.4,0.25098]
[1723544110172,58.47872878,144.44,144.39,45.0]
[1723544110389,40.35,144.42,144.32,22.7411]
[1723544110606,20.0,144.41,144.32,22.7411]
[1723544110808,60.35,144.46,144.34,40.35]
[1723544111211,60.35,144.46,144.4,6.925]
[1723544111212,6.9235,144.44,144.4,6.925]
[1723544111502,20.0,144.43,144.4,6.925]
[1723544111670,20.0,144.43,144.42,0.12549]
[1723544111873,26.9237,144.43,144.42,0.25098]
[1723544112072,20.0,144.43,144.42,0.25098]
[1723544112274,40.35,144.46,144.42,0.25098]
[1723544112517,20.0,144.45,144.42,0.25098]
[1723544112675,6.9236,144.44,144.42,0.25098]
[1723544113071,20.0,144.45,144.42,0.25098]
[1723544113272,6.9223,144.46,144.44,0.12549]
[1723544113480,6.9228,144.45,144.44,0.25098]
[1723544113676,6.9237,144.43,144.42,0.12549]
[1723544113897,6.9237,144.43,144.42,0.25098]
[1723544114198,6.9242,144.42,144.41,45.0]
[1723544114401,6.9248,144.41,144.37,7.05199]
[1723544114584,6.9248,144.41,144.39,0.12549]
[1723544114904,6.9242,144.42,144.39,0.12549]
[1723544115480,57.656,144.46,144.39,0.12549]
[1723544115481,6.9247,144.41,144.39,0.12549]
[1723544116206,6.9244,144.42,144.39,0.12549]
[1723544117024,40.35,144.48,144.39,0.12549]
[1723544117330,6.9233,144.44,144.41,17.3116]
[1723544117504,20.0,144.47,144.42,45.37647]
[1723544117815,6.9235,144.44,144.42,45.37647]
[1723544117997,6.9235,144.44,144.42,0.37647]
[1723544118201,6.9237,144.43,144.42,0.37647]
[1723544118402,6.9242,144.42,144.41,45.12549]
[1723544118707,40.35,144.44,144.37,0.12549]
[1723544118893,20.0,144.43,144.37,0.50196]
[1723544119095,20.81962878,144.43,144.37,0.50196]
[1723544119416,6.9254,144.4,144.36,13.5602]
[1723544119916,6.9254,144.4,144.37,6.9266]
[1723544120826,6.9254,144.4,144.38,45.37647]
[1723544121323,6.9256,144.39,144.38,45.37647]
[1723544121487,37.3096,144.43,144.38,0.25098]
[1723544122118,6.925,144.41,144.38,0.25098]
[1723544122328,6.9242,144.42,144.38,0.25098]
[1723544122497,20.0,144.41,144.4,0.12549]
[1723544122699,20.0,144.41,144.4,45.25098]
[1723544123220,40.35,144.48,144.4,45.37647]
[1723544123389,6.923,144.45,144.42,0.12549]
[1723544123594,6.923,144.45,144.42,45.25098]
[1723544124295,6.9215,144.48,144.44,6.9232]
[1723544124503,17.2994,144.52,144.45,62.80876]
[1723544125193,57.6513,144.5,144.45,45.25098]
[1723544125393,6.9223,144.46,144.45,0.12549]
[1723544125610,6.9247,144.41,144.4,22.9121]
[1723544125814,6.9243,144.42,144.4,68.16308]
[1723544126023,6.9243,144.42,144.41,45.12549]
[1723544126225,6.9243,144.42,144.41,45.0]
[1723544127129,20.0,144.42,144.36,39.5899]
[1723544127328,20.0,144.42,144.37,45.0]
[1723544127697,20.0,144.43,144.38,0.25098]
[1723544127897,20.0,144.45,144.39,0.25098]
[1723544128115,6.9247,144.41,144.39,0.25098]
[1723544128704,6.9242,144.42,144.39,0.25098]
[1723544129002,6.9242,144.42,144.39,45.25098]
[1723544129416,2.70653868,144.47,144.39,45.25098]
[1723544129594,40.35,144.48,144.41,0.12549]
[1723544129795,40.35,144.48,144.41,0.25098]